bitfinex/quotes_ETHUSD_20241106
["timestamp","ask_amount","ask_price","bid_price","bid_amount"]
[1730863681912,0.8001,2588.1,2586.2,0.01]
[1730863682058,0.8001,2588.1,2586.5,0.7917]
[1730863682059,0.466383,2588.0,2586.5,0.7917]
[1730863682261,0.8001,2587.9,2586.6,0.12090708]
[1730863682509,0.8001,2587.9,2586.7,0.12090708]
[1730863682706,0.8001,2587.9,2586.8,0.28861482]
[1730863683009,0.8001,2587.9,2586.9,0.28861482]
[1730863683166,0.40288955,2588.0,2586.8,0.8017]
[1730863683520,0.40288955,2588.0,2586.9,2.04124712]
[1730863683807,0.40288955,2588.0,2587.0,0.4095219]
[1730863683995,0.40288955,2588.0,2587.1,0.28861482]
[1730863684191,0.40288955,2588.0,2587.1,0.7917]
[1730863684411,0.40288955,2588.0,2587.2,1.05560873]
[1730863684703,0.1107752,2588.3,2587.3,0.7917]
[1730863685007,0.1107752,2588.3,2587.5,0.01]
[1730863685217,0.1107752,2588.3,2587.6,2.03893529]
[1730863685509,0.1107752,2588.3,2587.8,0.7917]
[1730863686083,0.1107752,2588.3,2587.4,0.91244403]
[1730863686468,0.1107752,2588.3,2587.4,0.8017]
[1730863687603,0.1107752,2588.3,2587.4,0.91244403]
[1730863687830,0.1107752,2588.3,2587.4,0.7917]
[1730863688029,0.1107752,2588.3,2587.5,0.61708477]
[1730863688200,0.1107752,2588.3,2587.8,0.7917]
[1730863688402,0.1107752,2588.3,2587.9,0.07725685]
[1730863688646,0.1107752,2588.3,2587.9,0.08725685]
[1730863688934,0.1107752,2588.3,2588.2,0.01]
[1730863689105,0.1107752,2588.3,2588.0,0.7917]
[1730863690036,0.1107752,2588.3,2588.2,0.01]
[1730863690334,0.1107752,2588.3,2588.2,0.8017]
[1730863691635,0.1107752,2588.3,2588.2,0.7917]
[1730863692491,0.1107752,2588.3,2588.2,0.8017]
[1730863692937,0.1107752,2588.3,2588.2,0.8117]
[1730863693294,0.1107752,2588.3,2588.2,0.8017]
[1730863693904,0.40294331,2589.9,2588.8,0.7917]
[1730863694559,4.26413331,2589.9,2588.8,0.7917]
[1730863695086,0.40294331,2589.9,2588.8,0.7917]
[1730863695302,0.8001,2590.0,2588.8,0.7917]
[1730863695534,0.55,2589.9,2588.8,0.7917]
[1730863695693,0.40316409,2589.8,2588.8,0.7917]
[1730863696128,0.40316409,2589.8,2588.5,0.7917]
[1730863696129,1.3501,2589.7,2588.5,0.7917]
[1730863696424,0.47532641,2589.6,2588.5,0.7917]
[1730863696634,3.47532641,2589.6,2588.5,0.7917]
[1730863696795,0.47532641,2589.6,2588.5,0.7917]
[1730863696993,3.47532641,2589.6,2588.5,0.7917]
[1730863697204,0.47532641,2589.6,2588.5,0.7917]
[1730863697409,0.42754264,2589.5,2588.5,0.7917]
[1730863697726,0.42754264,2589.5,2588.2,0.60708477]
[1730863698105,4.28934264,2589.5,2588.2,0.60708477]
[1730863698305,3.55,2589.4,2588.2,0.60708477]
[1730863698626,0.42754264,2589.5,2588.2,0.60708477]
[1730863698952,0.39028691,2589.4,2588.2,0.60708477]
[1730863699242,0.47532641,2589.6,2588.2,0.60708477]
[1730863700644,0.8001,2589.7,2588.3,0.7917]
[1730863700847,0.8001,2589.7,2588.4,0.64850144]
[1730863701619,0.40317179,2589.6,2588.5,0.7917]
[1730863702263,0.40317179,2589.6,2588.5,1.44020144]
[1730863702533,0.40317179,2589.6,2588.5,1.45020144]
[1730863702939,0.40317179,2589.6,2588.5,1.44020144]
[1730863703139,0.55,2589.5,2588.5,0.7917]
[1730863703437,0.48147918,2589.4,2588.5,0.7917]
[1730863704537,4.34340918,2589.4,2588.5,0.7917]
[1730863705555,0.48147918,2589.4,2588.5,0.7917]
[1730863705897,0.40317179,2589.6,2588.5,0.7917]
[1730863706170,4.074,2591.1,2588.2,0.76918486]
[1730863706171,0.8001,2590.0,2588.8,0.01]
[1730863706468,0.8001,2590.0,2588.9,0.12068342]
[1730863706764,3.86116,2589.9,2589.0,0.12068342]
[1730863706972,0.466126,2589.8,2588.8,0.12068342]
[1730863707267,4.6612,2590.0,2588.8,0.12068342]
[1730863707466,0.8001,2590.0,2588.9,0.12068342]
[1730863707626,0.8001,2590.0,2589.0,0.3137881]
[1730863707829,0.8001,2590.0,2589.1,0.12068342]
[1730863708039,0.8001,2590.0,2589.2,0.12068342]
[1730863708227,0.8001,2590.0,2589.3,0.12068342]
[1730863708228,0.466105,2589.9,2589.3,0.12068342]
[1730863708432,4.327365,2589.9,2589.4,0.12068342]
[1730863708632,0.466105,2589.9,2589.5,0.12067473]
[1730863708874,0.8001,2590.0,2589.1,0.19310468]
[1730863709033,0.8001,2590.0,2589.2,1.12577576]
[1730863709234,0.8001,2590.0,2589.3,0.31377576]
[1730863709447,3.86122,2589.9,2589.4,1.19314346]
[1730863709690,0.8001,2590.0,2589.5,1.00766503]
[1730863709893,0.466105,2589.9,2589.6,0.55515661]
[1730863710079,0.466105,2589.9,2589.4,0.45250842]
[1730863710382,0.466105,2589.9,2589.5,0.55507538]
[1730863710592,0.466105,2589.9,2589.6,0.31373738]
[1730863710899,4.2637866,2590.3,2589.7,0.5550559]
[1730863711067,0.35190227,2590.3,2589.8,0.31373738]
[1730863711270,0.35190227,2590.3,2589.9,0.31373738]
[1730863711590,1.0731355,2590.3,2590.0,0.55505011]
[1730863711753,1.0731355,2590.3,2590.1,0.55505011]
[1730863711958,5.7181855,2590.3,2590.2,0.31373738]
[1730863712153,5.7181855,2590.3,2590.2,0.12066822]
[1730863712357,5.7281855,2590.3,2590.2,0.12066822]
[1730863712604,8.7281855,2590.3,2590.2,0.12066822]
[1730863712758,9.2681855,2590.3,2590.2,0.12066822]
[1730863713106,1.13640227,2590.3,2590.2,0.55504334]
[1730863713258,1.13640227,2590.3,2590.2,1.2035294]
[1730863713461,1.13640227,2590.3,2590.2,1.20351358]
[1730863713709,1.13640227,2590.3,2590.2,0.55504334]
[1730863713913,1.13640227,2590.3,2590.2,0.55499089]
[1730863714197,1.62976652,2590.3,2590.2,0.55499089]
[1730863714394,9.04031652,2590.3,2590.2,0.55499089]
[1730863714769,9.06031652,2590.3,2590.2,0.55499089]
[1730863714966,9.06031652,2590.3,2590.2,0.3136905]
[1730863715309,9.06031652,2590.3,2590.2,0.12065019]
[1730863716462,8.50031652,2590.3,2590.2,0.31374247]
[1730863716659,8.50031652,2590.3,2590.2,0.12065019]
[1730863717011,8.50031652,2590.3,2588.1,0.37207034]
[1730863717012,0.01,2589.7,2589.5,0.18863932]
[1730863717219,3.86233,2589.2,2588.6,0.812]
[1730863717390,0.386233,2589.1,2588.7,0.89636859]
[1730863717714,4.64608,2589.7,2588.8,1.46698229]
[1730863717889,3.86171,2589.6,2588.9,0.19313925]
[1730863718088,3.86171,2589.6,2589.0,0.19313925]
[1730863718318,3.86171,2589.6,2589.1,0.65498229]
[1730863718536,4.64608,2589.7,2589.2,0.65498229]
[1730863718814,4.41189,2589.4,2589.3,0.65498229]
[1730863719374,0.464608,2589.6,2589.3,0.65498229]
[1730863719688,6.86178,2589.5,2589.4,0.65508692]
[1730863719886,0.7845,2589.5,2589.4,0.19313925]
[1730863720116,3.86156,2589.7,2589.4,0.65506538]
[1730863720325,7.72314,2589.7,2589.5,0.65506538]
[1730863720503,3.86156,2589.7,2589.6,0.65506538]
[1730863720825,5.012185,2589.7,2589.6,0.65503784]
[1730863721326,5.012185,2589.7,2589.6,0.1930997]
[1730863721679,8.012185,2589.7,2589.6,0.1930997]
[1730863722077,8.562185,2589.7,2589.6,0.1930997]
[1730863723922,9.345885,2589.7,2589.6,0.1930997]
[1730863725526,4.41219,2589.2,2589.1,0.18921886]
[1730863725724,4.41219,2589.2,2589.1,0.65117624]
[1730863725725,5.239613,2589.2,2589.1,0.65117624]
[1730863725930,5.239613,2589.2,2588.9,0.18852266]
[1730863725931,4.41249,2589.0,2588.9,0.18852266]
[1730863726104,0.55,2588.9,2588.2,0.8322]
[1730863726282,0.55,2588.9,2588.7,0.1885167]
[1730863726489,0.991249,2588.8,2588.7,0.1885167]
[1730863726720,0.991249,2588.8,2588.5,0.1885167]
[1730863726721,4.41294,2588.7,2588.5,0.1885167]
[1730863726941,7.41339,2588.4,2588.2,0.1885167]
[1730863727103,0.55,2588.2,2588.0,0.1885167]
[1730863727424,3.86384,2588.1,2587.7,0.1885167]
[1730863727626,0.441384,2588.0,2587.7,0.1885167]
[1730863727790,4.41371,2588.2,2587.7,0.1885167]
[1730863727990,4.41371,2588.2,2587.8,0.64994129]
[1730863728313,3.86387,2588.1,2587.6,0.18867659]
[1730863728758,3.86387,2588.1,2587.7,0.46091919]
[1730863728928,4.41371,2588.2,2587.8,0.12076834]
[1730863729127,4.305221,2588.1,2587.9,0.12076834]
[1730863729338,0.441371,2588.1,2588.0,0.12076834]
[1730863730339,3.55,2588.4,2588.0,0.12076834]
[1730863730583,3.8637,2588.2,2588.1,0.12076834]
[1730863730867,4.4137,2588.2,2588.1,0.12076834]
[1730863731078,3.7837,2588.5,2588.1,0.12076834]
[1730863731287,0.7837,2588.5,2588.2,0.12076834]
[1730863731566,3.86371,2588.2,2587.6,0.8322]
[1730863731765,0.386371,2588.1,2587.7,0.12074903]
[1730863731977,3.86371,2588.2,2587.8,0.12074903]
[1730863732148,3.86371,2588.2,2587.9,0.12074903]
[1730863732350,3.86371,2588.2,2587.6,0.8322]
[1730863732351,0.7837,2588.5,2588.0,0.12074903]
[1730863732558,3.86383,2588.1,2587.6,0.8322]
[1730863732767,3.86383,2588.1,2587.7,0.12075627]
[1730863732941,0.772738,2588.1,2587.8,0.12075627]
[1730863733142,0.55,2588.1,2587.9,0.12075627]
[1730863733502,3.0,2587.9,2587.3,0.8322]
[1730863733785,3.0,2587.9,2587.4,0.12077411]
[1730863733986,3.0,2587.9,2587.3,0.8322]
[1730863733987,6.86389,2588.1,2587.5,0.12077411]
[1730863734183,3.86402,2588.0,2587.3,0.8322]
[1730863734368,3.0,2587.9,2587.4,0.12077646]
[1730863734677,6.86387,2588.1,2587.5,0.12077646]
[1730863734977,3.864,2588.0,2587.3,0.8322]
[1730863735150,3.864,2588.0,2587.4,0.12077116]
[1730863735366,3.0,2588.1,2587.3,0.8322]
[1730863735594,6.86385,2588.1,2587.3,0.8322]
[1730863735744,7.937607,2588.1,2587.4,0.1207679]
[1730863735944,3.86403,2588.0,2587.3,0.8322]
[1730863736991,3.86439,2587.8,2587.3,0.8322]
[1730863737485,3.86414,2587.9,2587.3,0.8322]
[1730863737780,3.86424,2587.9,2587.3,0.8322]
[1730863738156,3.01,2587.7,2586.7,0.8322]
[1730863738389,0.7937,2587.8,2586.4,0.7552]
[1730863738390,3.86545,2587.1,2586.4,0.7552]
[1730863738680,3.86572,2586.9,2586.4,0.7552]
[1730863738888,8.559607,2586.9,2586.4,0.7552]
[1730863739089,3.86579,2586.8,2586.4,0.7552]
[1730863739296,3.86593,2586.7,2586.4,0.7552]
[1730863739581,4.693837,2586.9,2586.4,0.7552]
[1730863740290,4.693837,2586.9,2585.4,0.7552]
[1730863740607,3.55,2586.8,2585.4,0.7552]
[1730863740760,3.86601,2586.7,2585.6,0.7552]
[1730863741286,3.86632,2586.5,2585.6,0.7552]
[1730863741453,3.86609,2586.6,2585.6,0.7552]
[1730863741783,3.86633,2586.5,2585.6,0.7552]
[1730863741995,3.86633,2586.5,2584.9,0.13083059]
[1730863741996,3.55,2586.1,2585.3,0.7552]
[1730863742280,3.86786,2585.5,2585.0,0.7552]
[1730863742486,3.86786,2585.5,2584.9,0.12083059]
[1730863742487,4.41825,2585.2,2584.9,0.12083059]
[1730863742689,0.55,2585.0,2584.9,0.12083059]
[1730863742898,7.42847,2585.0,2584.9,0.12083059]
[1730863743194,4.696782,2585.2,2584.9,0.12083059]
[1730863743394,3.0,2585.0,2584.9,0.12083059]
[1730863743635,0.828612,2585.2,2584.9,0.12083059]
[1730863743951,0.02,2585.9,2584.7,0.7552]
[1730863744247,4.41792,2585.4,2584.7,0.7552]
[1730863744595,3.7831,2585.5,2584.7,0.7552]
[1730863744596,3.0,2585.5,2584.7,0.7552]
[1730863744789,3.86774,2585.5,2584.7,0.7552]
[1730863745416,3.0,2585.7,2584.7,0.7552]
[1730863745417,0.55,2585.6,2584.7,0.7552]
[1730863745617,0.355,2585.5,2584.7,0.7552]
[1730863745821,3.86819,2585.2,2583.7,0.1]
[1730863746142,3.86819,2585.2,2583.8,0.7552]
[1730863746143,3.86932,2584.5,2583.8,0.7552]
[1730863746633,3.0,2584.3,2583.8,0.7552]
[1730863746786,3.0,2584.5,2583.8,0.7552]
[1730863747186,3.7831,2584.8,2583.8,0.7552]
[1730863747421,3.0,2585.0,2583.8,0.7552]
[1730863747621,0.55,2585.2,2583.8,0.7552]
[1730863747861,0.55,2585.2,2583.9,0.07738853]
[1730863748061,0.55,2585.2,2584.0,0.7552]
[1730863748577,1.070101,2585.2,2584.0,0.7552]
[1730863748776,3.0,2585.1,2584.0,0.7552]
[1730863749223,0.55,2584.8,2584.0,0.7552]
[1730863749419,0.55,2585.0,2584.0,0.7552]
[1730863749861,0.55,2584.8,2584.0,0.7552]
[1730863750063,0.55,2584.6,2584.0,0.7552]
[1730863750232,1.3531,2584.6,2583.7,0.1]
[1730863750433,0.55,2584.1,2583.7,0.1]
[1730863750664,3.55,2584.1,2583.7,0.1]
[1730863751027,0.55,2584.1,2583.7,0.1]
[1730863751334,0.355,2584.1,2583.7,0.1]
[1730863751539,4.22481,2584.1,2583.7,0.1]
[1730863751724,0.55,2584.2,2583.7,0.1]
[1730863751927,3.0,2584.4,2583.7,0.1]
[1730863752331,0.55,2584.1,2583.7,0.1]
[1730863753052,7.41986,2584.1,2583.7,0.1]
[1730863753369,7.41983,2584.1,2583.7,0.1]
[1730863753603,1.12895,2584.0,2583.7,0.1]
[1730863753866,0.55,2583.9,2583.7,0.1]
[1730863754072,4.42026,2583.8,2583.7,0.1]
[1730863754368,3.55,2583.2,2582.7,0.7552]
[1730863754524,0.74211,2583.1,2582.7,0.7552]
[1730863755326,0.74211,2583.1,2582.4,0.7552]
[1730863755327,0.55,2583.0,2582.4,0.7552]
[1730863755724,0.74211,2583.1,2582.4,0.7552]
[1730863756340,3.0,2583.7,2582.4,0.7552]
[1730863756646,3.87931,2584.5,2582.7,0.7652]
[1730863756849,3.86939,2584.4,2582.9,0.7552]
[1730863757139,0.441864,2584.7,2583.1,0.7652]
[1730863757333,0.441864,2584.7,2583.3,0.7552]
[1730863757539,0.441864,2584.7,2583.1,0.3403299]
[1730863757540,0.441864,2584.7,2583.4,0.83260166]
[1730863758173,0.7831,2584.9,2583.4,0.83260166]
[1730863758373,0.7831,2584.9,2583.4,0.7552]
[1730863758573,0.7831,2584.9,2583.4,0.83259448]
[1730863758788,0.7552,2585.0,2583.4,0.83259448]
[1730863758959,0.7552,2585.0,2583.4,0.7552]
[1730863759142,1.683688,2585.0,2583.5,0.7652]
[1730863759346,0.928488,2585.0,2583.6,0.83258812]
[1730863759573,0.928488,2585.0,2583.6,0.7552]
[1730863759955,0.7831,2585.5,2583.9,0.7552]
[1730863760162,0.7552,2585.5,2584.0,0.83257892]
[1730863760396,0.7552,2585.5,2584.4,0.7552]
[1730863760603,0.7831,2585.8,2584.4,0.7552]
[1730863761272,1.5383,2585.8,2584.4,0.7552]
[1730863761798,0.7552,2585.8,2584.4,0.7552]
[1730863761963,4.64953,2586.4,2584.7,0.7552]
[1730863762158,0.7552,2586.2,2584.9,0.7552]
[1730863762385,3.86549,2587.0,2585.5,0.7552]
[1730863762592,4.6483,2587.2,2585.7,0.7552]
[1730863762794,0.7552,2586.9,2585.9,0.7552]
[1730863762990,0.7831,2587.6,2586.1,0.7552]
[1730863763209,4.64782,2587.6,2586.2,0.07732056]
[1730863763505,3.86546,2587.1,2586.1,0.7552]
[1730863763805,3.86491,2587.4,2586.1,0.7552]
[1730863764016,0.386491,2587.3,2586.1,0.7552]
[1730863764970,3.386491,2587.3,2586.1,0.7552]
[1730863765171,0.386491,2587.3,2586.2,0.19812473]
[1730863765376,5.40292,2587.6,2586.3,0.7552]
[1730863765598,3.86432,2587.8,2586.3,0.87600462]
[1730863765803,3.86502,2587.4,2586.3,0.7552]
[1730863765963,3.86521,2587.2,2586.3,0.7552]
[1730863766192,0.386521,2587.1,2586.3,0.7552]
[1730863766396,0.386521,2587.1,2586.3,0.87600462]
[1730863766598,0.386521,2587.1,2586.3,0.7552]
[1730863766822,3.86518,2587.2,2586.3,0.7552]
[1730863767231,3.86533,2587.1,2586.3,0.7552]
[1730863767638,3.7552,2587.3,2586.3,0.7552]
[1730863768140,3.0,2587.1,2586.3,0.7552]
[1730863768293,0.840322,2587.2,2586.3,0.7552]
[1730863768499,3.0,2587.2,2586.4,0.12080144]
[1730863768701,3.86535,2587.1,2586.3,0.7552]
[1730863768901,3.0,2586.6,2586.0,0.93400207]
[1730863769117,3.0,2586.6,2586.0,0.8132]
[1730863769344,3.0,2586.8,2586.0,0.8132]
[1730863769556,0.686565,2586.7,2586.0,0.8132]
[1730863771210,0.55,2586.6,2586.0,0.8132]
[1730863771632,3.86678,2586.2,2585.7,0.8132]
[1730863771830,0.55,2586.4,2585.7,0.8132]
[1730863772156,4.41653,2586.3,2585.7,0.8132]
[1730863772363,4.41653,2586.3,2585.0,0.01]
[1730863772364,3.0,2586.2,2585.3,0.93404632]
[1730863772507,6.86697,2586.0,2585.3,0.8132]
[1730863772824,6.86728,2585.8,2585.3,0.8132]
[1730863773029,3.86767,2585.6,2584.7,0.8132]
[1730863773338,3.686767,2585.6,2584.8,0.12088099]
[1730863773503,6.86761,2585.6,2584.7,0.8132]
[1730863773934,3.86773,2585.5,2584.7,0.8132]
[1730863774428,3.0,2585.6,2584.8,0.12088039]
[1730863774628,0.763384,2585.5,2584.7,0.8132]
[1730863775043,3.0,2585.8,2584.8,0.1208809]
[1730863775276,3.0,2586.0,2584.9,0.12087343]
[1730863775478,0.01,2586.6,2585.1,0.01]
[1730863775479,0.7663,2586.6,2585.1,0.01]
[1730863775634,3.86606,2586.7,2585.2,0.93407343]
[1730863775835,3.8662,2586.6,2585.4,0.8132]
[1730863776145,0.773226,2586.5,2585.5,0.12087343]
[1730863776332,0.773226,2586.5,2585.6,0.12087343]
[1730863776539,3.86619,2586.6,2585.4,0.8132]
[1730863776763,3.0,2586.5,2585.5,0.1981809]
[1730863776970,3.86639,2586.4,2585.6,0.12083936]
[1730863777279,3.86679,2586.2,2585.5,0.12084725]
[1730863777580,0.386679,2586.1,2585.4,0.8132]
[1730863777946,4.253519,2586.1,2585.4,0.8132]
[1730863778463,3.867,2586.0,2585.4,0.8132]
[1730863778843,3.386679,2586.1,2585.4,0.8132]
[1730863779462,3.86709,2586.0,2585.4,0.8132]
[1730863779793,0.55,2585.8,2585.1,0.93406277]
[1730863779941,3.0,2585.5,2585.1,0.8132]
[1730863780253,6.86759,2585.6,2585.1,0.8132]
[1730863780668,3.0,2585.6,2585.1,0.8132]
[1730863780871,0.686742,2585.5,2585.1,0.8132]
[1730863781782,3.86848,2585.0,2584.6,0.31428997]
[1730863782009,3.0,2584.6,2584.3,0.19341216]
[1730863782149,3.0,2584.4,2584.0,0.12091602]
[1730863782481,0.686935,2584.3,2583.9,0.8132]
[1730863782788,0.55,2584.7,2583.9,0.8132]
[1730863783287,6.86889,2584.8,2583.9,0.8132]
[1730863783465,3.0,2584.8,2583.9,0.8132]
[1730863783669,3.7255508,2584.8,2583.9,0.8132]
[1730863783878,3.7255508,2584.8,2584.0,0.1209245]
[1730863784047,3.7255508,2584.8,2583.9,0.8132]
[1730863784253,1.490542,2585.5,2584.1,0.8165]
[1730863784462,4.67166,2585.5,2584.3,0.8165]
[1730863784662,3.86769,2585.6,2584.4,0.19829463]
[1730863784864,3.86769,2585.6,2584.5,0.93742117]
[1730863785092,3.86769,2585.6,2584.5,0.89386897]
[1730863785299,3.86744,2585.7,2584.6,0.12088874]
[1730863785465,4.721443,2585.6,2584.7,0.12088874]
[1730863785663,4.721443,2585.6,2584.5,1.00991216]
[1730863785849,4.67109,2585.8,2584.6,0.12088646]
[1730863786048,3.86704,2586.0,2584.8,0.8165]
[1730863786402,3.86704,2586.0,2585.0,0.8165]
[1730863786601,3.86704,2586.0,2585.1,0.67878091]
[1730863786750,0.386704,2585.9,2585.2,0.12088646]
[1730863786947,3.86674,2586.2,2585.3,0.12088646]
[1730863787152,3.86674,2586.2,2584.8,0.46761004]
[1730863787153,3.86644,2586.4,2585.4,0.93738646]
[1730863787362,3.86644,2586.4,2585.5,0.12088646]
[1730863787615,3.86644,2586.4,2585.6,0.12088646]
[1730863787894,3.86644,2586.4,2585.4,0.8165]
[1730863788102,0.773258,2586.4,2585.5,0.12084834]
[1730863788403,3.86614,2586.6,2585.6,0.19818996]
[1730863788696,6.56823,2588.0,2585.7,1.41802175]
[1730863788697,3.86565,2586.9,2585.7,1.41802175]
[1730863788925,3.86588,2586.8,2585.8,0.60150155]
[1730863789107,3.86588,2586.8,2585.9,0.12084834]
[1730863789311,3.86588,2586.8,2586.0,0.12084834]
[1730863789482,3.86588,2586.8,2585.8,0.48073001]
[1730863789687,0.4332814,2586.7,2585.9,0.40823255]
[1730863789883,7.2993214,2586.7,2586.0,0.12082676]
[1730863790081,0.55,2586.6,2585.7,0.8165]
[1730863790328,1.11698953,2586.6,2585.8,0.60157679]
[1730863790626,1.11698953,2586.6,2585.9,0.1208319]
[1730863790829,1.11698953,2586.6,2586.0,0.1208319]
[1730863790996,1.11698953,2586.6,2585.7,0.8165]
[1730863791196,0.45502709,2586.5,2585.8,0.31416625]
[1730863791411,0.45502709,2586.5,2585.9,0.12083317]
[1730863791605,0.45502709,2586.5,2585.7,0.8165]
[1730863791805,0.45502709,2586.5,2585.8,0.60163464]
[1730863792045,0.45502709,2586.5,2585.9,0.1208356]
[1730863792252,0.45502709,2586.5,2585.8,0.2874665]
[1730863792434,0.45502709,2586.5,2585.9,0.12082868]
[1730863792744,1.09381266,2586.4,2585.7,0.8165]
[1730863793447,0.45502709,2586.5,2585.8,0.07733984]
[1730863793607,0.45502709,2586.5,2585.8,0.07733563]
[1730863793943,3.0,2586.9,2585.9,0.1208355]
[1730863794101,3.0,2586.7,2585.8,0.48085808]
[1730863794303,3.0,2586.7,2585.9,0.12082912]
[1730863794544,4.62017,2587.4,2586.1,0.8165]
[1730863794545,3.86519,2587.2,2586.1,0.8165]
[1730863794735,3.86562,2587.0,2586.1,0.8165]
[1730863794905,4.252212,2586.9,2586.1,0.8165]
[1730863795100,3.86587,2586.8,2586.1,0.8165]
[1730863795447,3.86615,2586.6,2586.1,0.8165]
[1730863796141,3.55,2586.5,2586.1,0.8165]
[1730863796580,3.0,2586.7,2586.1,0.8165]
[1730863796783,3.4252402,2586.7,2586.1,0.8165]
[1730863797156,7.2912002,2586.7,2586.1,0.8165]
[1730863797357,3.4252402,2586.7,2586.1,0.8165]
[1730863797889,0.7552,2587.4,2585.5,0.1933188]
[1730863797890,0.7552,2587.4,2586.2,0.01]
[1730863798041,3.86462,2587.6,2586.4,0.8165]
[1730863798390,3.86462,2587.6,2586.6,0.8165]
[1730863798539,0.601964,2587.7,2586.7,0.12080639]
[1730863798743,0.4466344,2587.6,2586.6,0.8165]
[1730863798967,4.3112244,2587.6,2586.6,0.8165]
[1730863799169,3.86485,2587.5,2586.6,0.8165]
[1730863799446,3.0,2587.1,2586.6,0.8165]
[1730863799639,3.86552,2587.0,2586.6,0.8165]
[1730863799843,0.686552,2586.9,2586.6,0.8165]
[1730863800382,0.55,2586.8,2586.6,0.8165]
[1730863800584,0.55,2586.8,2586.0,0.2875913]
[1730863800585,4.41588,2586.8,2586.1,0.7516]
[1730863800786,3.0,2587.2,2586.1,0.7516]
[1730863800787,3.86634,2586.5,2586.1,0.7516]
[1730863800940,0.8264,2587.3,2586.1,0.7516]
[1730863800941,3.55,2586.6,2586.1,0.7516]
[1730863801141,0.55,2586.6,2586.1,0.7516]
[1730863801491,3.86609,2586.6,2586.1,0.7516]
[1730863801996,3.86609,2586.6,2585.4,0.7516]
[1730863801997,0.55,2586.5,2585.4,0.7516]
[1730863802191,3.86686,2586.1,2585.4,0.7516]
[1730863802356,4.41669,2586.2,2585.4,0.7516]
[1730863802745,7.73259,2586.5,2585.4,0.7516]
[1730863802949,0.55,2586.4,2585.4,0.7516]
[1730863803253,0.55,2586.6,2585.6,0.7516]
[1730863803481,3.86568,2586.9,2585.3,0.19329023]
[1730863803482,4.41584,2586.8,2585.8,0.7516]
[1730863803658,0.55,2586.6,2585.8,0.7516]
[1730863803925,0.55,2586.7,2585.8,0.7516]
[1730863804122,3.86554,2587.0,2585.9,0.12082438]
[1730863804339,3.86554,2587.0,2586.0,0.87242438]
[1730863804634,3.86554,2587.0,2586.0,0.7516]
[1730863804839,3.86554,2587.0,2586.1,0.1208211]
[1730863805049,3.86522,2587.2,2586.2,0.7516]
[1730863805256,3.86522,2587.2,2585.9,0.48096786]
[1730863805257,8.1759744,2587.6,2586.1,0.7516]
[1730863805543,8.1759744,2587.6,2586.3,0.7516]
[1730863805544,3.86466,2587.6,2586.3,0.7516]
[1730863805709,3.8656,2587.0,2586.4,0.12080868]
[1730863805895,3.86609,2586.6,2586.3,0.7516]
[1730863806097,3.86647,2586.4,2586.2,1.9352]
[1730863806413,3.86652,2586.3,2586.2,1.9352]
[1730863806597,3.86647,2586.4,2586.2,1.9352]
[1730863806803,3.86652,2586.3,2586.2,1.9352]
[1730863807005,0.55,2586.3,2586.2,1.9352]
[1730863807512,6.86613,2586.6,2586.2,1.9352]
[1730863807721,3.86652,2586.3,2586.2,1.9352]
[1730863807923,7.41652,2586.3,2586.2,1.9352]
[1730863809745,7.41652,2586.3,2586.2,0.97252854]
[1730863809932,8.24292,2586.3,2586.2,0.97252854]
[1730863810331,4.3764,2586.3,2585.3,0.7516]
[1730863810657,3.0,2585.9,2585.3,0.7516]
[1730863810864,6.86712,2585.9,2585.3,0.7516]
[1730863811022,0.55,2585.7,2585.3,0.7516]
[1730863811222,4.41744,2585.7,2585.3,0.7516]
[1730863811466,0.55,2585.7,2585.3,0.7516]
[1730863811670,3.0,2585.9,2585.3,0.7516]
[1730863811967,6.86691,2586.1,2585.3,0.7516]
[1730863812168,7.940273,2586.1,2585.3,0.7516]
[1730863812325,7.940273,2586.1,2585.3,1.8501]
[1730863812520,0.55,2586.2,2585.3,1.8501]
[1730863812752,3.0,2586.1,2585.3,1.8501]
[1730863813223,3.0,2586.5,2585.5,0.7516]
[1730863813425,3.86584,2586.8,2585.7,0.7516]
[1730863813627,3.86587,2586.8,2585.9,0.8296]
[1730863813887,4.252457,2586.8,2586.0,0.19815633]
[1730863814162,0.386587,2586.8,2586.0,0.0773301]
[1730863814366,0.386587,2586.8,2586.1,0.8296]
[1730863814574,3.86593,2586.7,2586.1,0.8296]
[1730863814737,3.86556,2587.0,2586.1,0.8296]
[1730863814738,3.86636,2586.5,2586.1,0.8296]
[1730863814942,0.55,2586.6,2586.1,0.8296]
[1730863815171,0.55,2586.6,2585.8,0.95043679]
[1730863815356,3.86698,2586.0,2585.8,0.12083679]
[1730863815556,0.386698,2585.9,2585.8,0.12083679]
[1730863815757,4.253818,2585.9,2585.8,0.12083679]
[1730863816076,0.55,2586.0,2585.5,0.8296]
[1730863816228,4.41787,2585.4,2585.3,1.0985]
[1730863816425,3.0,2585.6,2585.3,1.0985]
[1730863817262,7.41787,2585.4,2585.3,1.0985]
[1730863818870,8.19387,2585.4,2585.3,1.0985]
[1730863819116,8.19387,2585.4,2584.0,0.8296]
[1730863819117,3.86862,2584.9,2584.0,0.8296]
[1730863819394,3.0,2584.3,2583.5,0.8296]
[1730863819599,0.776,2584.4,2583.5,0.8296]
[1730863819755,3.87056,2583.6,2583.5,0.8296]
[1730863819960,3.55,2583.8,2583.5,0.8296]
[1730863820160,7.42034,2583.8,2583.4,0.36284604]
[1730863820360,0.55,2583.5,2583.4,0.36284604]
[1730863820560,4.42071,2583.5,2583.4,0.36284604]
[1730863821364,7.42071,2583.5,2583.4,0.36284604]
[1730863821798,3.55,2583.2,2582.3,0.072829]
[1730863822000,3.0,2582.8,2582.3,0.072829]
[1730863822208,3.87178,2582.8,2582.3,0.072829]